fUSD/lending_fUSD_20260530
["ID","MTS","AMOUNT","RATE_DAILY","PERIOD"]
[423427721,1780108241000,-5477.56291353,0.00013699,2]
[423427661,1780108241000,-743.02264156,0.00013699,2]
[423427760,1780108241000,-166.66,0.00013973,2]
[423427764,1780108241000,-20101.69531695,0.0001399,2]
[423427839,1780108241000,-150.0,0.00014472,2]
[423427835,1780108241000,-500.0,0.00014451,6]
[423427832,1780108241000,-500.0,0.00014451,5]
[423427836,1780108241000,-350.0,0.00014468,2]
[423427843,1780108241000,-3370.56,0.00014497,2]
[423427845,1780108241000,-2297.3,0.00014497,2]
[423427847,1780108241000,-150.0,0.00014515,2]
[423427849,1780108241000,-150.0,0.00014558,2]
[423427851,1780108241000,-150.0,0.00014558,2]
[423427857,1780108241000,-150.0,0.00014601,2]
[423427855,1780108241000,-389.33913438,0.00014594,2]
[423427853,1780108241000,-150.0,0.00014558,2]
[423427859,1780108241000,-150.0,0.00014612,2]
[423427841,1780108241000,-150.0,0.00014487,2]
[423427863,1780108241000,-11982.85067706,0.00014621,2]
[423427865,1780108241000,-150.0,0.00014644,2]
[423427869,1780108241000,-150.0,0.00014687,2]
[423427883,1780108241000,-1041.58642541,0.00014748,2]
[423427885,1780108241000,-1000.0,0.00014759,2]
[423427871,1780108241000,-150.0,0.00014687,2]
[423427887,1780108241000,-200.0,0.00014769,2]
[423427873,1780108241000,-129541.0846584,0.0001472,2]
[423427875,1780108241000,-3625.532443,0.0001472,2]
[423427881,1780108241000,-1000.0,0.00014739,2]
[423427877,1780108241000,-21065.9578171,0.0001472,2]
[423427890,1780108241000,-150.0,0.00014772,2]
[423427879,1780108241000,-150.0,0.00014729,2]
[423427759,1780108241000,-150.0,0.00013959,2]
[423427861,1780108241000,-350.0,0.00014614,2]
[423427830,1780108241000,-500.0,0.00014438,2]
[423427867,1780108241000,-150.0,0.00014653,2]
[423427826,1780108241000,-350.0,0.00014407,2]
[423427824,1780108241000,-766.02070208,0.000144,2]
[423427782,1780108241000,-150.0,0.0001413,2]
[423427795,1780108241000,-150.0,0.00014237,2]
[423427796,1780108241000,-166.66,0.00014247,2]
[423427785,1780108241000,-431.66,0.00014136,2]
[423427799,1780108241000,-389.33913438,0.00014287,2]
[423427793,1780108241000,-150.0,0.00014216,2]
[423427783,1780108241000,-150.0,0.0001413,2]
[423427798,1780108241000,-150.0,0.00014258,2]
[423427788,1780108241000,-150.0,0.00014173,2]
[423427790,1780108241000,-18640.76620912,0.00014178,2]
[423427786,1780108241000,-150.0,0.00014154,2]
[423427791,1780108241000,-1839.60337747,0.0001421,7]
[423427802,1780108241000,-150.0,0.00014301,2]
[423427778,1780108241000,-166.66,0.0001411,2]
[423427804,1780108241000,-150.0,0.0001432,2]
[423427801,1780108241000,-2742.86531824,0.00014291,2]
[423427822,1780108241000,-10468.10573176,0.0001439,2]
[423427807,1780108241000,-150.0,0.00014344,2]
[423427810,1780108241000,-166.66,0.00014384,2]
[423427809,1780108241000,-150.0,0.00014344,2]
[423427820,1780108241000,-2358.3308828,0.00014389,2]
[423427828,1780108241000,-150.0,0.0001443,2]
[423427815,1780108241000,-500.0,0.00014386,4]
[423427814,1780108241000,-500.0,0.00014386,3]
[423427819,1780108241000,-150.0,0.00014387,2]
[423427806,1780108241000,-150.0,0.00014344,2]
[423427812,1780108241000,-500.0,0.00014386,2]
[423427817,1780108241000,-150.0,0.00014387,2]
[423427986,1780108242000,-4837.4684902,0.00014941,2]
[423427984,1780108242000,-1000.0,0.00014937,2]
[423427980,1780108242000,-808.9656346,0.0001493,2]
[423427968,1780108242000,-6057.3717985,0.00014909,2]
[423427978,1780108242000,-28904.5229656,0.0001493,2]
[423427955,1780108242000,-18640.76620912,0.000149,2]
[423427957,1780108242000,-4072.45788744,0.000149,2]
[423427953,1780108242000,-25000.0,0.000149,3]
[423427974,1780108242000,-400.0,0.00014925,2]
[423427970,1780108242000,-2000.0,0.0001492,2]
[423427982,1780108242000,-4700.4505414,0.0001493,2]
[423427976,1780108242000,-1000.0,0.00014926,2]
[423428023,1780108242000,-915.98,0.00014998,2]
[423428001,1780108242000,-232.60106033,0.00014986,2]
[423427995,1780108242000,-163.71718505,0.00014986,2]
[423427990,1780108242000,-1000.0,0.00014947,2]
[423427992,1780108242000,-2000.0,0.0001497,2]
[423427999,1780108242000,-151.9125752,0.00014986,2]
[423427997,1780108242000,-217.54708937,0.00014986,2]
[423428003,1780108242000,-273.46900396,0.00014986,2]
[423428012,1780108242000,-430.03858076,0.00014995,2]
[423428016,1780108242000,-151.0,0.00014997,2]
[423428018,1780108242000,-151.0,0.00014997,2]
[423428009,1780108242000,-174.11793133,0.00014986,2]
[423428006,1780108242000,-246.41293601,0.00014986,2]
[423428021,1780108242000,-500.0,0.00014998,9]
[423427972,1780108242000,-400.0,0.00014925,2]
[423427988,1780108242000,-150.0,0.00014943,2]
[423427960,1780108242000,-201.86721501,0.000149,2]
[423427891,1780108242000,-150.0,0.00014772,2]
[423427966,1780108242000,-150.0,0.00014901,2]
[423427893,1780108242000,-150.0,0.00014772,2]
[423427897,1780108242000,-1000.0,0.00014786,2]
[423427895,1780108242000,-1000.0,0.00014778,2]
[423427907,1780108242000,-150.0,0.00014815,2]
[423427905,1780108242000,-1000.0,0.00014815,2]
[423427908,1780108242000,-1000.0,0.00014819,2]
[423427910,1780108242000,-200.0,0.00014819,2]
[423427914,1780108242000,-1000.0,0.0001482,2]
[423427904,1780108242000,-1210.71429061,0.000148,2]
[423427900,1780108242000,-1000.0,0.00014792,2]
[423427902,1780108242000,-1000.0,0.00014798,2]
[423427912,1780108242000,-150.0,0.0001482,2]
[423427916,1780108242000,-500.0,0.00014837,2]
[423427962,1780108242000,-2742.86531824,0.000149,2]
[423427920,1780108242000,-500.0,0.00014845,7]
[423427928,1780108242000,-25000.0,0.00014874,3]
[423427918,1780108242000,-521.78,0.00014837,2]
[423427934,1780108242000,-2000.0,0.0001488,2]
[423427924,1780108242000,-500.0,0.00014856,2]
[423427930,1780108242000,-200.0,0.00014879,2]
[423427926,1780108242000,-150.0,0.00014858,2]
[423427937,1780108242000,-25000.0,0.00014882,3]
[423427932,1780108242000,-311.0,0.0001488,2]
[423427940,1780108242000,-25000.0,0.00014891,3]
[423427947,1780108242000,-1127.9222328,0.000149,2]
[423427944,1780108242000,-500.0,0.00014899,8]
[423427950,1780108242000,-10000.0,0.000149,2]
[423427964,1780108242000,-389.33913438,0.000149,2]
[423427922,1780108242000,-200.0,0.00014849,2]
[423428025,1780108242000,-4297.31,0.00014998,2]
[423428062,1780108242000,-650.83,0.00014999,2]
[423428031,1780108242000,-669.38,0.00014999,2]
[423428091,1780108242000,-650.94879675,0.00014999,2]
[423428105,1780108242000,-607.1,0.00014999,2]
[423428089,1780108242000,-650.83,0.00014999,2]
[423428113,1780108242000,-607.1,0.00014999,2]
[423428095,1780108242000,-607.1,0.00014999,2]
[423428107,1780108242000,-607.1,0.00014999,2]
[423428109,1780108242000,-607.1,0.00014999,2]
[423428111,1780108242000,-607.1,0.00014999,2]
[423428115,1780108242000,-607.1,0.00014999,2]
[423428126,1780108242000,-500.0,0.00014999,2]
[423428128,1780108242000,-500.0,0.00014999,2]
[423428133,1780108242000,-521.78,0.00014999,2]
[423428117,1780108242000,-607.1,0.00014999,2]
[423428093,1780108242000,-607.1,0.00014999,2]
[423428119,1780108242000,-607.1,0.00014999,2]
[423428122,1780108242000,-607.1,0.00014999,2]
[423428135,1780108242000,-521.78,0.00014999,2]
[423428124,1780108242000,-607.29390042,0.00014999,2]
[423428139,1780108242000,-521.78,0.00014999,2]
[423428137,1780108242000,-521.78,0.00014999,2]
[423428151,1780108242000,-521.78,0.00014999,2]
[423428141,1780108242000,-521.78,0.00014999,2]
[423428152,1780108242000,-521.78,0.00014999,2]
[423428155,1780108242000,-521.78,0.00014999,2]
[423428143,1780108242000,-521.78,0.00014999,2]
[423428145,1780108242000,-521.78,0.00014999,2]
[423428149,1780108242000,-521.78,0.00014999,2]
[423428147,1780108242000,-521.78,0.00014999,2]
[423428130,1780108242000,-498.43141485,0.00014999,2]
[423428103,1780108242000,-607.1,0.00014999,2]
[423428027,1780108242000,-669.38,0.00014999,2]
[423428099,1780108242000,-607.1,0.00014999,2]
[423428097,1780108242000,-607.1,0.00014999,2]
[423428029,1780108242000,-669.38,0.00014999,2]
[423428044,1780108242000,-669.38,0.00014999,2]
[423428048,1780108242000,-669.38,0.00014999,2]
[423428052,1780108242000,-669.38,0.00014999,2]
[423428042,1780108242000,-669.38,0.00014999,2]
[423428036,1780108242000,-669.38,0.00014999,2]
[423428038,1780108242000,-669.38,0.00014999,2]
[423428046,1780108242000,-669.38,0.00014999,2]
[423428050,1780108242000,-669.38,0.00014999,2]
[423428040,1780108242000,-669.38,0.00014999,2]
[423428054,1780108242000,-669.38,0.00014999,2]
[423428056,1780108242000,-669.38,0.00014999,2]
[423428058,1780108242000,-669.57046541,0.00014999,2]
[423428034,1780108242000,-669.38,0.00014999,2]
[423428064,1780108242000,-650.83,0.00014999,2]
[423428060,1780108242000,-650.83,0.00014999,2]
[423428087,1780108242000,-650.83,0.00014999,2]
[423428078,1780108242000,-650.83,0.00014999,2]
[423428083,1780108242000,-650.83,0.00014999,2]
[423428074,1780108242000,-650.83,0.00014999,2]
[423428076,1780108242000,-650.83,0.00014999,2]
[423428066,1780108242000,-650.83,0.00014999,2]
[423428085,1780108242000,-650.83,0.00014999,2]
[423428080,1780108242000,-650.83,0.00014999,2]
[423428072,1780108242000,-650.83,0.00014999,2]
[423428101,1780108242000,-607.1,0.00014999,2]
[423428068,1780108242000,-650.83,0.00014999,2]
[423428070,1780108242000,-650.83,0.00014999,2]
[423428216,1780108243000,-470.11392164,0.00014999,21]
[423428200,1780108243000,-500.0,0.00014999,21]
[423428220,1780108243000,-915.98,0.00014999,2]
[423428218,1780108243000,-915.98,0.00014999,2]
[423428225,1780108243000,-915.98,0.00014999,2]
[423428223,1780108243000,-915.98,0.00014999,2]
[423428227,1780108243000,-915.98,0.00014999,2]
[423428233,1780108243000,-915.98,0.00014999,2]
[423428235,1780108243000,-915.98,0.00014999,2]
[423428217,1780108243000,-915.98,0.00014999,2]
[423428243,1780108243000,-915.98,0.00014999,2]
[423428231,1780108243000,-915.98,0.00014999,2]
[423428237,1780108243000,-915.98,0.00014999,2]
[423428245,1780108243000,-916.06100248,0.00014999,2]
[423428241,1780108243000,-915.98,0.00014999,2]
[423428239,1780108243000,-915.98,0.00014999,2]
[423428247,1780108243000,-3557.79982436,0.00014999,2]
[423428271,1780108243000,-500.0,0.00014999,2]
[423428260,1780108243000,-500.0,0.00014999,2]
[423428253,1780108243000,-500.0,0.00014999,2]
[423428277,1780108243000,-244.74519264,0.00014999,2]
[423428198,1780108243000,-500.0,0.00014999,21]
[423428229,1780108243000,-915.98,0.00014999,2]
[423428214,1780108243000,-500.0,0.00014999,21]
[423428169,1780108243000,-521.78,0.00014999,2]
[423428202,1780108243000,-500.0,0.00014999,21]
[423428159,1780108243000,-521.78,0.00014999,2]
[423428157,1780108243000,-521.78,0.00014999,2]
[423428163,1780108243000,-521.78,0.00014999,2]
[423428167,1780108243000,-521.78,0.00014999,2]
[423428161,1780108243000,-521.78,0.00014999,2]
[423428165,1780108243000,-521.78,0.00014999,2]
[423428171,1780108243000,-521.78,0.00014999,2]
[423428173,1780108243000,-521.96099601,0.00014999,2]
[423428177,1780108243000,-500.0,0.00014999,11]
[423428175,1780108243000,-500.0,0.00014999,10]
[423428204,1780108243000,-500.0,0.00014999,21]
[423428263,1780108243000,-500.0,0.00014999,2]
[423428181,1780108243000,-500.0,0.00014999,13]
[423428183,1780108243000,-500.0,0.00014999,14]
[423428185,1780108243000,-500.0,0.00014999,15]
[423428189,1780108243000,-500.0,0.00014999,17]
[423428194,1780108243000,-500.0,0.00014999,19]
[423428192,1780108243000,-500.0,0.00014999,18]
[423428196,1780108243000,-500.0,0.00014999,20]
[423428206,1780108243000,-500.0,0.00014999,21]
[423428208,1780108243000,-500.0,0.00014999,21]
[423428212,1780108243000,-500.0,0.00014999,21]
[423428179,1780108243000,-500.0,0.00014999,12]
[423428301,1780108243000,-478.17553055,0.00014999,2]
[423428187,1780108243000,-500.0,0.00014999,16]
[423428275,1780108243000,-500.0,0.00014999,2]
[423428312,1780108243000,-583.17,0.00014999,2]
[423428314,1780108243000,-583.17,0.00014999,2]
[423428310,1780108243000,-497.78987791,0.00014999,2]
[423428318,1780108243000,-583.17,0.00014999,2]
[423428308,1780108243000,-500.0,0.00014999,2]
[423428333,1780108243000,-583.17,0.00014999,2]
[423428336,1780108243000,-583.17,0.00014999,2]
[423428344,1780108243000,-583.30071349,0.00014999,2]
[423428352,1780108243000,-4297.31,0.00014999,2]
[423428338,1780108243000,-583.17,0.00014999,2]
[423428346,1780108243000,-4297.31,0.00014999,2]
[423428327,1780108243000,-583.17,0.00014999,2]
[423428342,1780108243000,-583.17,0.00014999,2]
[423428354,1780108243000,-4297.31,0.00014999,2]
[423428350,1780108243000,-4297.31,0.00014999,2]
[423428348,1780108243000,-4297.31,0.00014999,2]
[423428356,1780108243000,-4297.31,0.00014999,2]
[423428358,1780108243000,-4297.31,0.00014999,2]
[423428360,1780108243000,-4297.31,0.00014999,2]
[423428362,1780108243000,-4297.31,0.00014999,2]
[423428364,1780108243000,-4297.31,0.00014999,2]
[423428366,1780108243000,-4297.31,0.00014999,2]
[423428368,1780108243000,-4297.31,0.00014999,2]
[423428269,1780108243000,-500.0,0.00014999,2]
[423428340,1780108243000,-583.17,0.00014999,2]
[423428325,1780108243000,-583.17,0.00014999,2]
[423428210,1780108243000,-500.0,0.00014999,21]
[423428329,1780108243000,-583.17,0.00014999,2]
[423428249,1780108243000,-500.0,0.00014999,2]
[423428287,1780108243000,-500.0,0.00014999,2]
[423428283,1780108243000,-500.0,0.00014999,2]
[423428251,1780108243000,-500.0,0.00014999,2]
[423428265,1780108243000,-500.0,0.00014999,2]
[423428304,1780108243000,-500.0,0.00014999,2]
[423428255,1780108243000,-500.0,0.00014999,2]
[423428291,1780108243000,-500.0,0.00014999,2]
[423428273,1780108243000,-500.0,0.00014999,2]
[423428285,1780108243000,-500.0,0.00014999,2]
[423428279,1780108243000,-500.0,0.00014999,2]
[423428281,1780108243000,-500.0,0.00014999,2]
[423428297,1780108243000,-500.0,0.00014999,2]
[423428293,1780108243000,-500.0,0.00014999,2]
[423428267,1780108243000,-500.0,0.00014999,2]
[423428257,1780108243000,-500.0,0.00014999,2]
[423428295,1780108243000,-500.0,0.00014999,2]
[423428299,1780108243000,-500.0,0.00014999,2]
[423428306,1780108243000,-500.0,0.00014999,2]
[423428316,1780108243000,-583.17,0.00014999,2]
[423428323,1780108243000,-583.17,0.00014999,2]
[423428321,1780108243000,-583.17,0.00014999,2]
[423428331,1780108243000,-583.17,0.00014999,2]
[423428289,1780108243000,-500.0,0.00014999,2]
[423428395,1780108244000,-6278254.13849404,0.00015,2]
[423428393,1780108244000,-300.0,0.00014999,2]
[423428392,1780108244000,-307.16575562,0.00014999,2]
[423428394,1780108244000,-300.0,0.00014999,2]
[423428389,1780108244000,-4297.31,0.00014999,2]
[423428390,1780108244000,-4297.31,0.00014999,2]
[423428391,1780108244000,-4297.41589114,0.00014999,2]
[423428441,1780108245000,-1999.16196732,0.00015,2]
[423428442,1780108245000,-642.63984363,0.00015,2]
[423428446,1780108245000,-1643.51913838,0.00015,30]
[423428444,1780108245000,-197768.1368186,0.00015,2]
[423428443,1780108245000,-1569.08025255,0.00013564,2]
[423428440,1780108245000,-1700.75189847,0.00015,2]
[423428448,1780108245000,-861.13,0.00015,2]
[423428447,1780108245000,-539.35831429,0.00015,30]
[423428452,1780108245000,-999.21765633,0.00015,2]
[423428449,1780108245000,-1097.51128941,0.00015,2]
[423428450,1780108245000,-184.8,0.00015,2]
[423428451,1780108245000,-2135761.84033732,0.00015,2]
[423428445,1780108245000,-428.41384639,0.00015,2]
[423428455,1780108246000,-15.90860231,0.00014761,2]
[423428453,1780108246000,-536.34,0.00014761,2]
[423428454,1780108246000,-3422.88970174,0.00014761,2]
[423428458,1780108246000,-136555.64805624,0.00015,2]
[423428456,1780108246000,-8007.71237299,0.00014761,2]
[423428487,1780108246000,-3638.0,0.00012557,2]
[423428490,1780108246000,-1569.08025255,0.00014232,2]
[423428493,1780108246000,-43752.4631381,0.00015,2]
[423428509,1780108246000,-548.32661199,0.000149,2]
[423428501,1780108246000,-6688.4445456,0.00015,2]
[423428516,1780108246000,-1124.45115733,0.000149,2]
[423428506,1780108246000,-1104.89183922,0.000149,2]
[423428498,1780108246000,-1189.33499715,0.00015,2]
[423428511,1780108246000,-920.31042784,0.000149,2]
[423428519,1780108246000,-765.56801084,0.000149,2]
[423428521,1780108246000,-892.53740751,0.000149,2]
[423428529,1780108246000,-6565.25923131,0.00015,2]
[423428527,1780108246000,-4422.77039081,0.000149,2]
[423428524,1780108246000,-1626.9948315,0.000149,2]
[423428514,1780108246000,-577.0,0.000149,2]
[423428614,1780108321000,500.0,8.219e-05,2]
[423428615,1780108322000,451.96207729,8.219e-05,2]
[423428616,1780108322000,500.0,8.169e-05,2]
[423428618,1780108359000,497.40098922,8.388e-05,2]
[423428622,1780108431000,2000.0,0.00028082,120]
[423428623,1780108444000,2000.0,0.00028082,120]
[423428624,1780108451000,2000.0,0.00028082,120]
[423428625,1780108463000,2887.0,0.00028082,120]
[423428626,1780108813000,-1449.79890081,8.378e-05,2]
[423428627,1780108834000,-1200.0,8.377e-05,2]
[423428629,1780108889000,-215.58360558,8.377e-05,2]
[423428630,1780108941000,-264.37175267,8.377e-05,2]
[423428633,1780108995000,-500.0,8.377e-05,2]
[423428634,1780109049000,-848.72040387,8.377e-05,2]
[423428635,1780109073000,3299.82278226,0.0002,120]
[423428636,1780109104000,176.0,0.00024968,120]
[423428637,1780109106000,176.0,0.00026216,120]
[423428651,1780109135000,-500.0,8.376e-05,2]
[423428649,1780109135000,-500.0,8.376e-05,2]
[423428647,1780109135000,-500.0,8.376e-05,2]
[423428650,1780109135000,-500.0,8.376e-05,2]
[423428648,1780109135000,-500.0,8.376e-05,2]
[423428646,1780109135000,-500.0,8.376e-05,2]
[423428639,1780109135000,-150.0,8.375e-05,2]
[423428645,1780109135000,-500.0,8.376e-05,2]
[423428643,1780109135000,-500.0,8.376e-05,2]
[423428641,1780109135000,-500.0,8.376e-05,2]
[423428640,1780109135000,-500.0,8.376e-05,2]
[423428642,1780109135000,-500.0,8.376e-05,2]
[423428653,1780109135000,-391.75325694,8.376e-05,2]
[423428638,1780109135000,-300.0,8.375e-05,2]
[423428644,1780109135000,-500.0,8.376e-05,2]
[423428654,1780109135000,-500.0,8.376e-05,2]
[423428652,1780109135000,-500.0,8.376e-05,2]
[423428672,1780109135000,-500.0,8.376e-05,2]
[423428655,1780109135000,-500.0,8.376e-05,2]
[423428668,1780109135000,-500.0,8.376e-05,2]
[423428671,1780109135000,-500.0,8.376e-05,2]
[423428670,1780109135000,-500.0,8.376e-05,2]
[423428669,1780109135000,-500.0,8.376e-05,2]
[423428667,1780109135000,-500.0,8.376e-05,2]
[423428666,1780109135000,-500.0,8.376e-05,2]
[423428665,1780109135000,-500.0,8.376e-05,2]
[423428660,1780109135000,-500.0,8.376e-05,2]
[423428662,1780109135000,-500.0,8.376e-05,2]
[423428663,1780109135000,-500.0,8.376e-05,2]
[423428661,1780109135000,-500.0,8.376e-05,2]
[423428659,1780109135000,-500.0,8.376e-05,2]
[423428657,1780109135000,-500.0,8.376e-05,2]
[423428656,1780109135000,-500.0,8.376e-05,2]
[423428658,1780109135000,-500.0,8.376e-05,2]
[423428664,1780109135000,-500.0,8.376e-05,2]
[423428673,1780109136000,-500.0,8.376e-05,2]
[423428675,1780109136000,-500.0,8.377e-05,2]
[423428674,1780109136000,-500.0,8.377e-05,2]
[423428676,1780109136000,-500.0,8.377e-05,2]
[423428678,1780109136000,-366.3734541,8.377e-05,2]
[423428679,1780109136000,-185.06022687,8.377e-05,2]
[423428680,1780109136000,-15841.82819484,8.378e-05,2]
[423428677,1780109136000,-500.0,8.377e-05,2]
[423428684,1780109340000,1000.0,0.00028081,120]
[423428695,1780109431000,-46006.20421176,8.388e-05,2]
[423428693,1780109431000,-14452.9305311,8.378e-05,2]
[423428694,1780109431000,-565.81360258,8.388e-05,2]
[423428692,1780109431000,-895.08556826,8.378e-05,2]
[423428691,1780109431000,-12.04559365,8.377e-05,2]
[423428689,1780109431000,-500.0,8.377e-05,2]
[423428690,1780109431000,-444.41582422,8.377e-05,2]
[423428703,1780109437000,-500.0,8.376e-05,2]
[423428702,1780109437000,-500.0,8.376e-05,2]
[423428860,1780109438000,-583.17,0.00013698,2]
[423428728,1780109438000,-270.09899084,0.00011099,2]
[423428730,1780109438000,-162.46,0.00011143,2]
[423428731,1780109438000,-150.0,0.00011189,2]
[423428736,1780109438000,-162.47,0.00011335,2]
[423428737,1780109438000,-150.0,0.00011379,2]
[423428739,1780109438000,-2148.51,0.00011389,2]
[423428741,1780109438000,-1000.0,0.00011488,2]
[423428742,1780109438000,-1935.57,0.00011748,2]
[423428740,1780109438000,-6279.82,0.00011446,2]
[423428744,1780109438000,-1527.17170779,0.00012068,2]
[423428743,1780109438000,-270.09899084,0.00011963,2]
[423428747,1780109438000,-384.0,0.00012697,2]
[423428746,1780109438000,-160.56,0.00012656,2]
[423428745,1780109438000,-2000.0,0.0001245,2]
[423428748,1780109438000,-270.09899084,0.00012697,2]
[423428749,1780109438000,-448.18,0.00012765,2]
[423428750,1780109438000,-1527.17170779,0.00013012,2]
[423428751,1780109438000,-928.0,0.00013061,2]
[423428752,1780109438000,-3550.0,0.00013061,2]
[423428753,1780109438000,-1226.0,0.00013061,2]
[423428758,1780109438000,-1985.26,0.00013099,2]
[423428754,1780109438000,-1272.0,0.00013061,2]
[423428756,1780109438000,-6066.0,0.00013061,2]
[423428755,1780109438000,-525.0,0.00013061,2]
[423428735,1780109438000,-384.0,0.00011286,2]
[423428733,1780109438000,-270.09899084,0.00011229,2]
[423428734,1780109438000,-1364.71,0.00011253,2]
[423428732,1780109438000,-200.0,0.00011225,2]
[423428704,1780109438000,-321.30591744,8.376e-05,2]
[423428705,1780109438000,-412622.90879902,8.388e-05,2]
[423428707,1780109438000,-565.81360258,8.396e-05,2]
[423428712,1780109438000,-498.61,0.000107,2]
[423428710,1780109438000,-403.21726959,9.379e-05,2]
[423428709,1780109438000,-2392.1459,9.147e-05,2]
[423428706,1780109438000,-565.81360258,8.392e-05,2]
[423428713,1780109438000,-1527.17170779,0.000109,2]
[423428708,1780109438000,-215.58360558,8.405e-05,2]
[423428711,1780109438000,-154.8,0.0001069,2]
[423428714,1780109438000,-1527.17170779,0.000109,2]
[423428757,1780109438000,-3638.0,0.00013061,2]
[423428724,1780109438000,-252.68250334,0.00011069,2]
[423428717,1780109438000,-500.0,0.00010958,3]
[423428715,1780109438000,-1527.17170779,0.000109,2]
[423428718,1780109438000,-500.0,0.00010958,4]
[423428719,1780109438000,-500.0,0.00010958,5]
[423428721,1780109438000,-500.0,0.00010958,7]
[423428723,1780109438000,-2000.0,0.00011066,2]
[423428722,1780109438000,-500.0,0.00010998,8]
[423428720,1780109438000,-500.0,0.00010958,6]
[423428725,1780109438000,-270.09899093,0.00011099,2]
[423428727,1780109438000,-270.09899084,0.00011099,2]
[423428726,1780109438000,-270.09899084,0.00011099,2]
[423428716,1780109438000,-500.0,0.00010958,2]
[423428759,1780109438000,-160.56,0.00013322,2]
[423428729,1780109438000,-1527.17170779,0.00011124,2]
[423428761,1780109438000,-270.09899084,0.00013432,2]
[423428826,1780109438000,-500.0,0.00013698,2]
[423428828,1780109438000,-500.0,0.00013698,2]
[423428830,1780109438000,-500.0,0.00013698,2]
[423428832,1780109438000,-500.0,0.00013698,2]
[423428834,1780109438000,-500.0,0.00013698,2]
[423428837,1780109438000,-915.98,0.00013698,2]
[423428848,1780109438000,-500.0,0.00013698,2]
[423428839,1780109438000,-915.98,0.00013698,2]
[423428847,1780109438000,-500.0,0.00013698,2]
[423428845,1780109438000,-500.0,0.00013698,2]
[423428844,1780109438000,-500.0,0.00013698,2]
[423428846,1780109438000,-500.0,0.00013698,2]
[423428841,1780109438000,-500.0,0.00013698,2]
[423428843,1780109438000,-500.0,0.00013698,2]
[423428851,1780109438000,-500.0,0.00013698,2]
[423428850,1780109438000,-500.0,0.00013698,2]
[423428854,1780109438000,-583.17,0.00013698,2]
[423428852,1780109438000,-500.0,0.00013698,2]
[423428855,1780109438000,-583.17,0.00013698,2]
[423428853,1780109438000,-500.0,0.00013698,2]
[423428857,1780109438000,-583.17,0.00013698,2]
[423428859,1780109438000,-583.17,0.00013698,2]
[423428858,1780109438000,-583.17,0.00013698,2]
[423428760,1780109438000,-1216.0,0.00013381,2]
[423428856,1780109438000,-583.17,0.00013698,2]
[423428821,1780109438000,-500.0,0.00013698,2]
[423428817,1780109438000,-500.0,0.00013698,2]
[423428849,1780109438000,-500.0,0.00013698,2]
[423428767,1780109438000,-150.0,0.00013488,2]
[423428763,1780109438000,-150.0,0.00013488,2]
[423428823,1780109438000,-500.0,0.00013698,2]
[423428765,1780109438000,-151.9125752,0.00013488,2]
[423428769,1780109438000,-150.0,0.00013488,2]
[423428782,1780109438000,-150.0,0.0001362,2]
[423428772,1780109438000,-150.0,0.00013488,2]
[423428774,1780109438000,-150.0,0.00013488,2]
[423428776,1780109438000,-150.0,0.00013488,2]
[423428780,1780109438000,-150.0,0.00013576,2]
[423428784,1780109438000,-150.0,0.00013664,2]
[423428786,1780109438000,-150.0,0.00013675,2]